Workbook

Sheet Základní údaje
A1: kolej: Vltava, VŠE
A2: OBDOBÍ:
A3: 2020-05-01 | B3: 2024-04-30
A4: Identifikace subjektu podávajícího nabídku:
A5: Název subjektu:
A6: IČ:
A7: Sídlo:
A8: Zapsaná v:
D9: Předpoklad roční inflace
D10: 1. rok | E10: 2. rok | F10: 3. rok | G10: 4. rok
A11: CENA pracovní dny [Kč/hodinu/člověka]: | B11: 0 | C11: =IF(B11<>0,B12/B11,0) -> 0 | D11: 0 | E11: 0 | F11: 0 | G11: 0
A12: CENA víkendy [Kč/hodinu/člověka]: | B12: 0 | C12: =IF(B11<>0,(5*B11+2*B12)/7/B11,0) -> 0 | D12: 1 | E12: =1+E11 -> 1 | F12: =1+F11 -> 1 | G12: 1
D13: 1 | E13: =+D13*E12 -> 1 | F13: =+E13*F12 -> 1 | G13: 1 | H13: =SUM(D13:G13)/4 -> 1
A15: CENA CELKEM ZA ZAKÁZKU: | B15: ='Rozpis úklidu'!B73:D73 -> 0

Sheet Rozpis úklidu
A1: ='Základní údaje'!A1 -> kolej: Vltava, VŠE | B1: ='Základní údaje'!A2 -> OBDOBÍ: | C1: ='Základní údaje'!A3 -> 2020-05-01 | D1: ='Základní údaje'!B3 -> 2024-04-30
A2: Cena za 1 úklidovou hodinu: | B2: ='Základní údaje'!B11 -> 0 | C2: Kč/hod.
A3: Úklidová jednotka | B3: plocha [m²] | C3: kusy [-] | D3: počet úklidových jednotek | E3: CELKEM [m²] [ks] | F3: uklízí se | G3: počet úklidů | H3: sezonní týden od | I3: sezonní týden do | J3: uklízí se v pracovní dny | K3: uklízí se o víkendech | L3: Popis činnosti | M3: Zadavatelem doporučený čas na úklidovou jednotku [min] | N3: Uchazečem navrhovaný čas na úklidovou jednotku [min.] | O3: celkový čas úklidu všech úklidových jednotek [hod.] | P3: Cena za úklidovou jednotku [Kč] | Q3: cena celkem za všechny úklidové jednotky (prac. dny) [Kč] | R3: Cena celkem za období úklidu [Kč] | S3: Poznámka
A4: schody na střechu | B4: 3 | D4: 3 | E4: =B4*D4+C4*D4 -> 9 | F4: sezonně | G4: 18 | H4: 35 | I4: 52 | J4: 1 | K4: 0 | L4: vytření, setření prachu, včetně zábradlí | M4: 3.5 | O4: =IF(N4=0,M4*D4/60,N4*D4/60) -> 0.175 | P4: =ROUND(IF(N4=0,M4/60*$B$2,N4/60*$B$2),0) -> 0 | Q4: =P4*D4 -> 0 | R4: =IF(F4="denně",Q4*G4*$B$69,IF(F4="týdně",Q4*G4*$B$70,IF(F4="měsíčně",Q4*G4*$B$71,IF(F4="čtvrtletně",Q4*G4*4*$B$72,IF(F4="ročně",Q4*G4*$B$72,G4*Q4*$B$72)))))*'Základní údaje'!$H$13*IF(K4=1,'Základní údaje'!$C$12,1) -> 0
A5: výtah | C5: 1 | D5: 6 | E5: 6 | F5: sezonně | G5: 90 | H5: 35 | I5: 52 | J5: 1 | K5: 0 | L5: Úklidová činnost č. 11 | M5: 10 | O5: 1 | P5: 0 | Q5: 0 | R5: =IF(F5="denně",Q5*G5*$B$69,IF(F5="týdně",Q5*G5*$B$70,IF(F5="měsíčně",Q5*G5*$B$71,IF(F5="čtvrtletně",Q5*G5*4*$B$72,IF(F5="ročně",Q5*G5*$B$72,G5*Q5*$B$72)))))*'Základní údaje'!$H$13*IF(K5=1,'Základní údaje'!$C$12,1) -> 0
A6: patro chodba s krčkem | B6: 236 | D6: 5 | E6: 1180 | F6: sezonně | G6: 90 | H6: 35 | I6: 52 | J6: 1 | K6: 0 | L6: Úklidová činnost č. 1 | M6: 40 | O6: 3.333333333 | P6: 0 | Q6: 0 | R6: =IF(F6="denně",Q6*G6*$B$69,IF(F6="týdně",Q6*G6*$B$70,IF(F6="měsíčně",Q6*G6*$B$71,IF(F6="čtvrtletně",Q6*G6*4*$B$72,IF(F6="ročně",Q6*G6*$B$72,G6*Q6*$B$72)))))*'Základní údaje'!$H$13*IF(K6=1,'Základní údaje'!$C$12,1) -> 0
A7: přilehlé schodiště | B7: 4 | D7: 15 | E7: 60 | F7: sezonně | G7: 36 | H7: 35 | I7: 52 | J7: 1 | K7: 0 | L7: Úklidová činnost č. 1 | M7: 1 | O7: 0.25 | P7: 0 | Q7: 0 | R7: =IF(F7="denně",Q7*G7*$B$69,IF(F7="týdně",Q7*G7*$B$70,IF(F7="měsíčně",Q7*G7*$B$71,IF(F7="čtvrtletně",Q7*G7*4*$B$72,IF(F7="ročně",Q7*G7*$B$72,G7*Q7*$B$72)))))*'Základní údaje'!$H$13*IF(K7=1,'Základní údaje'!$C$12,1) -> 0
A8: přilehlé zábradlí | C8: 1 | D8: 15 | E8: 15 | F8: sezonně | G8: 36 | H8: 35 | I8: 52 | J8: 1 | K8: 0 | L8: mytí zábradlí | M8: 1 | O8: 0.25 | P8: 0 | Q8: 0 | R8: =IF(F8="denně",Q8*G8*$B$69,IF(F8="týdně",Q8*G8*$B$70,IF(F8="měsíčně",Q8*G8*$B$71,IF(F8="čtvrtletně",Q8*G8*4*$B$72,IF(F8="ročně",Q8*G8*$B$72,G8*Q8*$B$72)))))*'Základní údaje'!$H$13*IF(K8=1,'Základní údaje'!$C$12,1) -> 0
A9: studovna | B9: 31 | D9: 10 | E9: 310 | F9: sezonně | G9: 36 | H9: 35 | I9: 52 | J9: 1 | K9: 0 | L9: Úklidová činnost č. 3 | M9: 15 | O9: 2.5 | P9: 0 | Q9: 0 | R9: =IF(F9="denně",Q9*G9*$B$69,IF(F9="týdně",Q9*G9*$B$70,IF(F9="měsíčně",Q9*G9*$B$71,IF(F9="čtvrtletně",Q9*G9*4*$B$72,IF(F9="ročně",Q9*G9*$B$72,G9*Q9*$B$72)))))*'Základní údaje'!$H$13*IF(K9=1,'Základní údaje'!$C$12,1) -> 0
A10: sušárny | B10: 6 | D10: 2 | E10: 12 | F10: sezonně | G10: 18 | H10: 35 | I10: 52 | J10: 1 | K10: 0 | L10: Úklidová činnost č. 3 | M10: 10 | O10: 0.3333333333 | P10: 0 | Q10: 0 | R10: =IF(F10="denně",Q10*G10*$B$69,IF(F10="týdně",Q10*G10*$B$70,IF(F10="měsíčně",Q10*G10*$B$71,IF(F10="čtvrtletně",Q10*G10*4*$B$72,IF(F10="ročně",Q10*G10*$B$72,G10*Q10*$B$72)))))*'Základní údaje'!$H$13*IF(K10=1,'Základní údaje'!$C$12,1) -> 0
A11: hala | B11: 200 | D11: 1 | E11: 200 | F11: sezonně | G11: 90 | H11: 35 | I11: 52 | J11: 1 | K11: 0 | L11: Úklidová činnost č. 1 | M11: 30 | O11: 0.5 | P11: 0 | Q11: 0 | R11: =IF(F11="denně",Q11*G11*$B$69,IF(F11="týdně",Q11*G11*$B$70,IF(F11="měsíčně",Q11*G11*$B$71,IF(F11="čtvrtletně",Q11*G11*4*$B$72,IF(F11="ročně",Q11*G11*$B$72,G11*Q11*$B$72)))))*'Základní údaje'!$H$13*IF(K11=1,'Základní údaje'!$C$12,1) -> 0
A12: přilehlé venkovní schodiště | C12: 1 | D12: 1 | E12: 1 | F12: sezonně | G12: 90 | H12: 35 | I12: 52 | J12: 1 | K12: 0 | L12: zamést, sesbírat odpadky | M12: 5 | O12: 0.08333333333 | P12: 0 | Q12: 0 | R12: =IF(F12="denně",Q12*G12*$B$69,IF(F12="týdně",Q12*G12*$B$70,IF(F12="měsíčně",Q12*G12*$B$71,IF(F12="čtvrtletně",Q12*G12*4*$B$72,IF(F12="ročně",Q12*G12*$B$72,G12*Q12*$B$72)))))*'Základní údaje'!$H$13*IF(K12=1,'Základní údaje'!$C$12,1) -> 0
A13: kanceláře | B13: 31 | D13: 1 | E13: 31 | F13: sezonně | G13: 18 | H13: 35 | I13: 52 | J13: 1 | K13: 0 | L13: Úklidová činnost č. 3 | M13: 10 | O13: 0.1666666667 | P13: 0 | Q13: 0 | R13: =IF(F13="denně",Q13*G13*$B$69,IF(F13="týdně",Q13*G13*$B$70,IF(F13="měsíčně",Q13*G13*$B$71,IF(F13="čtvrtletně",Q13*G13*4*$B$72,IF(F13="ročně",Q13*G13*$B$72,G13*Q13*$B$72)))))*'Základní údaje'!$H$13*IF(K13=1,'Základní údaje'!$C$12,1) -> 0
A14: recepce | B14: 42 | D14: 1 | E14: 42 | F14: sezonně | G14: 18 | H14: 35 | I14: 52 | J14: 1 | K14: 0 | L14: Úklidová činnost č. 3 | M14: 15 | O14: 0.25 | P14: 0 | Q14: 0 | R14: =IF(F14="denně",Q14*G14*$B$69,IF(F14="týdně",Q14*G14*$B$70,IF(F14="měsíčně",Q14*G14*$B$71,IF(F14="čtvrtletně",Q14*G14*4*$B$72,IF(F14="ročně",Q14*G14*$B$72,G14*Q14*$B$72)))))*'Základní údaje'!$H$13*IF(K14=1,'Základní údaje'!$C$12,1) -> 0
A15: místnost + pračky a sušičky | B15: 6 | D15: 1 | E15: 6 | F15: sezonně | G15: 90 | H15: 35 | I15: 52 | J15: 1 | K15: 0 | L15: Úklidová činnost č. 4 | M15: 10 | O15: 0.1666666667 | P15: 0 | Q15: 0 | R15: =IF(F15="denně",Q15*G15*$B$69,IF(F15="týdně",Q15*G15*$B$70,IF(F15="měsíčně",Q15*G15*$B$71,IF(F15="čtvrtletně",Q15*G15*4*$B$72,IF(F15="ročně",Q15*G15*$B$72,G15*Q15*$B$72)))))*'Základní údaje'!$H$13*IF(K15=1,'Základní údaje'!$C$12,1) -> 0
A16: chodba suterén vč.nouz.východu | B16: 230 | D16: 1 | E16: 230 | F16: sezonně | G16: 18 | H16: 35 | I16: 52 | J16: 1 | K16: 0 | L16: Úklidová činnost č. 1 | M16: 38 | O16: 0.6333333333 | P16: 0 | Q16: 0 | R16: =IF(F16="denně",Q16*G16*$B$69,IF(F16="týdně",Q16*G16*$B$70,IF(F16="měsíčně",Q16*G16*$B$71,IF(F16="čtvrtletně",Q16*G16*4*$B$72,IF(F16="ročně",Q16*G16*$B$72,G16*Q16*$B$72)))))*'Základní údaje'!$H$13*IF(K16=1,'Základní údaje'!$C$12,1) -> 0
A17: místnost úklízeček a úklid.prost. | B17: 9 | D17: 1 | E17: 9 | F17: sezonně | G17: 18 | H17: 35 | I17: 52 | J17: 1 | K17: 0 | L17: Úklidová činnost č. 3 | M17: 5 | O17: 0.08333333333 | P17: 0 | Q17: 0 | R17: =IF(F17="denně",Q17*G17*$B$69,IF(F17="týdně",Q17*G17*$B$70,IF(F17="měsíčně",Q17*G17*$B$71,IF(F17="čtvrtletně",Q17*G17*4*$B$72,IF(F17="ročně",Q17*G17*$B$72,G17*Q17*$B$72)))))*'Základní údaje'!$H$13*IF(K17=1,'Základní údaje'!$C$12,1) -> 0
A18: 045 sklad lůžkovin | B18: 34 | D18: 1 | E18: 34 | F18: sezonně | G18: 36 | H18: 35 | I18: 52 | J18: 1 | K18: 0 | L18: Úklidová činnost č. 3 | M18: 8.5 | O18: 0.1416666667 | P18: 0 | Q18: 0 | R18: =IF(F18="denně",Q18*G18*$B$69,IF(F18="týdně",Q18*G18*$B$70,IF(F18="měsíčně",Q18*G18*$B$71,IF(F18="čtvrtletně",Q18*G18*4*$B$72,IF(F18="ročně",Q18*G18*$B$72,G18*Q18*$B$72)))))*'Základní údaje'!$H$13*IF(K18=1,'Základní údaje'!$C$12,1) -> 0
A19: 023 sklad | B19: 45 | D19: 1 | E19: 45 | F19: sezonně | G19: 1 | H19: 35 | I19: 52 | J19: 1 | K19: 0 | L19: Úklidová činnost č. 3 | M19: 11 | O19: 0.1833333333 | P19: 0 | Q19: 0 | R19: =IF(F19="denně",Q19*G19*$B$69,IF(F19="týdně",Q19*G19*$B$70,IF(F19="měsíčně",Q19*G19*$B$71,IF(F19="čtvrtletně",Q19*G19*4*$B$72,IF(F19="ročně",Q19*G19*$B$72,G19*Q19*$B$72)))))*'Základní údaje'!$H$13*IF(K19=1,'Základní údaje'!$C$12,1) -> 0
A20: 024 sklad - nábytek | B20: 45 | D20: 1 | E20: 45 | F20: sezonně | G20: 1 | H20: 35 | I20: 52 | J20: 1 | K20: 0 | L20: Úklidová činnost č. 3 | M20: 11 | O20: 0.1833333333 | P20: 0 | Q20: 0 | R20: =IF(F20="denně",Q20*G20*$B$69,IF(F20="týdně",Q20*G20*$B$70,IF(F20="měsíčně",Q20*G20*$B$71,IF(F20="čtvrtletně",Q20*G20*4*$B$72,IF(F20="ročně",Q20*G20*$B$72,G20*Q20*$B$72)))))*'Základní údaje'!$H$13*IF(K20=1,'Základní údaje'!$C$12,1) -> 0
A21: schody na střechu | B21: 3 | D21: 3 | E21: 9 | F21: sezonně | G21: 26 | H21: 1 | I21: 26 | J21: 1 | K21: 0 | L21: vytření, setření prachu, včetně zábradlí | M21: 3.5 | O21: 0.175 | P21: 0 | Q21: 0 | R21: =IF(F21="denně",Q21*G21*$B$69,IF(F21="týdně",Q21*G21*$B$70,IF(F21="měsíčně",Q21*G21*$B$71,IF(F21="čtvrtletně",Q21*G21*4*$B$72,IF(F21="ročně",Q21*G21*$B$72,G21*Q21*$B$72)))))*'Základní údaje'!$H$13*IF(K21=1,'Základní údaje'!$C$12,1) -> 0
A22: výtah | C22: 1 | D22: 6 | E22: 6 | F22: sezonně | G22: 130 | H22: 1 | I22: 26 | J22: 1 | K22: 0 | L22: Úklidová činnost č. 11 | M22: 10 | O22: 1 | P22: 0 | Q22: 0 | R22: =IF(F22="denně",Q22*G22*$B$69,IF(F22="týdně",Q22*G22*$B$70,IF(F22="měsíčně",Q22*G22*$B$71,IF(F22="čtvrtletně",Q22*G22*4*$B$72,IF(F22="ročně",Q22*G22*$B$72,G22*Q22*$B$72)))))*'Základní údaje'!$H$13*IF(K22=1,'Základní údaje'!$C$12,1) -> 0
A23: patro chodba s krčkem | B23: 236 | D23: 5 | E23: 1180 | F23: sezonně | G23: 130 | H23: 1 | I23: 26 | J23: 1 | K23: 0 | L23: Úklidová činnost č. 1 | M23: 40 | O23: 3.333333333 | P23: 0 | Q23: 0 | R23: =IF(F23="denně",Q23*G23*$B$69,IF(F23="týdně",Q23*G23*$B$70,IF(F23="měsíčně",Q23*G23*$B$71,IF(F23="čtvrtletně",Q23*G23*4*$B$72,IF(F23="ročně",Q23*G23*$B$72,G23*Q23*$B$72)))))*'Základní údaje'!$H$13*IF(K23=1,'Základní údaje'!$C$12,1) -> 0
A24: přilehlé schodiště | B24: 4 | D24: 15 | E24: 60 | F24: sezonně | G24: 52 | H24: 1 | I24: 26 | J24: 1 | K24: 0 | L24: Úklidová činnost č. 1 | M24: 1 | O24: 0.25 | P24: 0 | Q24: 0 | R24: =IF(F24="denně",Q24*G24*$B$69,IF(F24="týdně",Q24*G24*$B$70,IF(F24="měsíčně",Q24*G24*$B$71,IF(F24="čtvrtletně",Q24*G24*4*$B$72,IF(F24="ročně",Q24*G24*$B$72,G24*Q24*$B$72)))))*'Základní údaje'!$H$13*IF(K24=1,'Základní údaje'!$C$12,1) -> 0
A25: přilehlé zábradlí | C25: 1 | D25: 15 | E25: 15 | F25: sezonně | G25: 52 | H25: 1 | I25: 26 | J25: 1 | K25: 0 | L25: mytí zábradlí | M25: 1 | O25: 0.25 | P25: 0 | Q25: 0 | R25: =IF(F25="denně",Q25*G25*$B$69,IF(F25="týdně",Q25*G25*$B$70,IF(F25="měsíčně",Q25*G25*$B$71,IF(F25="čtvrtletně",Q25*G25*4*$B$72,IF(F25="ročně",Q25*G25*$B$72,G25*Q25*$B$72)))))*'Základní údaje'!$H$13*IF(K25=1,'Základní údaje'!$C$12,1) -> 0
A26: studovna | B26: 31 | D26: 10 | E26: 310 | F26: sezonně | G26: 52 | H26: 1 | I26: 26 | J26: 1 | K26: 0 | L26: Úklidová činnost č. 3 | M26: 15 | O26: 2.5 | P26: 0 | Q26: 0 | R26: =IF(F26="denně",Q26*G26*$B$69,IF(F26="týdně",Q26*G26*$B$70,IF(F26="měsíčně",Q26*G26*$B$71,IF(F26="čtvrtletně",Q26*G26*4*$B$72,IF(F26="ročně",Q26*G26*$B$72,G26*Q26*$B$72)))))*'Základní údaje'!$H$13*IF(K26=1,'Základní údaje'!$C$12,1) -> 0
A27: sušárny | B27: 6 | D27: 2 | E27: 12 | F27: sezonně | G27: 1 | H27: 1 | I27: 26 | J27: 1 | K27: 0 | L27: Úklidová činnost č. 3 | M27: 10 | O27: 0.3333333333 | P27: 0 | Q27: 0 | R27: =IF(F27="denně",Q27*G27*$B$69,IF(F27="týdně",Q27*G27*$B$70,IF(F27="měsíčně",Q27*G27*$B$71,IF(F27="čtvrtletně",Q27*G27*4*$B$72,IF(F27="ročně",Q27*G27*$B$72,G27*Q27*$B$72)))))*'Základní údaje'!$H$13*IF(K27=1,'Základní údaje'!$C$12,1) -> 0
A28: hala | B28: 200 | D28: 1 | E28: 200 | F28: sezonně | G28: 130 | H28: 1 | I28: 26 | J28: 1 | K28: 0 | L28: Úklidová činnost č. 1 | M28: 30 | O28: 0.5 | P28: 0 | Q28: 0 | R28: =IF(F28="denně",Q28*G28*$B$69,IF(F28="týdně",Q28*G28*$B$70,IF(F28="měsíčně",Q28*G28*$B$71,IF(F28="čtvrtletně",Q28*G28*4*$B$72,IF(F28="ročně",Q28*G28*$B$72,G28*Q28*$B$72)))))*'Základní údaje'!$H$13*IF(K28=1,'Základní údaje'!$C$12,1) -> 0
A29: přilehlé venkovní schodiště | C29: 1 | D29: 1 | E29: 1 | F29: sezonně | G29: 130 | H29: 1 | I29: 26 | J29: 1 | K29: 0 | L29: zamést, sesbírat odpadky | M29: 5 | O29: 0.08333333333 | P29: 0 | Q29: 0 | R29: =IF(F29="denně",Q29*G29*$B$69,IF(F29="týdně",Q29*G29*$B$70,IF(F29="měsíčně",Q29*G29*$B$71,IF(F29="čtvrtletně",Q29*G29*4*$B$72,IF(F29="ročně",Q29*G29*$B$72,G29*Q29*$B$72)))))*'Základní údaje'!$H$13*IF(K29=1,'Základní údaje'!$C$12,1) -> 0
A30: kanceláře | B30: 31 | D30: 1 | E30: 31 | F30: sezonně | G30: 26 | H30: 1 | I30: 26 | J30: 1 | K30: 0 | L30: Úklidová činnost č. 3 | M30: 10 | O30: 0.1666666667 | P30: 0 | Q30: 0 | R30: =IF(F30="denně",Q30*G30*$B$69,IF(F30="týdně",Q30*G30*$B$70,IF(F30="měsíčně",Q30*G30*$B$71,IF(F30="čtvrtletně",Q30*G30*4*$B$72,IF(F30="ročně",Q30*G30*$B$72,G30*Q30*$B$72)))))*'Základní údaje'!$H$13*IF(K30=1,'Základní údaje'!$C$12,1) -> 0
A31: recepce | B31: 42 | D31: 1 | E31: 42 | F31: sezonně | G31: 26 | H31: 1 | I31: 26 | J31: 1 | K31: 0 | L31: Úklidová činnost č. 3 | M31: 15 | O31: 0.25 | P31: 0 | Q31: 0 | R31: =IF(F31="denně",Q31*G31*$B$69,IF(F31="týdně",Q31*G31*$B$70,IF(F31="měsíčně",Q31*G31*$B$71,IF(F31="čtvrtletně",Q31*G31*4*$B$72,IF(F31="ročně",Q31*G31*$B$72,G31*Q31*$B$72)))))*'Základní údaje'!$H$13*IF(K31=1,'Základní údaje'!$C$12,1) -> 0
A32: místnost + pračky a sušičky | B32: 6 | D32: 1 | E32: 6 | F32: sezonně | G32: 130 | H32: 1 | I32: 26 | J32: 1 | K32: 0 | L32: Úklidová činnost č. 4 | M32: 10 | O32: 0.1666666667 | P32: 0 | Q32: 0 | R32: =IF(F32="denně",Q32*G32*$B$69,IF(F32="týdně",Q32*G32*$B$70,IF(F32="měsíčně",Q32*G32*$B$71,IF(F32="čtvrtletně",Q32*G32*4*$B$72,IF(F32="ročně",Q32*G32*$B$72,G32*Q32*$B$72)))))*'Základní údaje'!$H$13*IF(K32=1,'Základní údaje'!$C$12,1) -> 0
A33: chodba suterén vč.nouz.východu | B33: 230 | D33: 1 | E33: 230 | F33: sezonně | G33: 26 | H33: 1 | I33: 26 | J33: 1 | K33: 0 | L33: Úklidová činnost č. 1 | M33: 38 | O33: 0.6333333333 | P33: 0 | Q33: 0 | R33: =IF(F33="denně",Q33*G33*$B$69,IF(F33="týdně",Q33*G33*$B$70,IF(F33="měsíčně",Q33*G33*$B$71,IF(F33="čtvrtletně",Q33*G33*4*$B$72,IF(F33="ročně",Q33*G33*$B$72,G33*Q33*$B$72)))))*'Základní údaje'!$H$13*IF(K33=1,'Základní údaje'!$C$12,1) -> 0
A34: místnost úklízeček a úklid.prost. | B34: 9 | D34: 1 | E34: 9 | F34: sezonně | G34: 26 | H34: 1 | I34: 26 | J34: 1 | K34: 0 | L34: Úklidová činnost č. 3 | M34: 5 | O34: 0.08333333333 | P34: 0 | Q34: 0 | R34: =IF(F34="denně",Q34*G34*$B$69,IF(F34="týdně",Q34*G34*$B$70,IF(F34="měsíčně",Q34*G34*$B$71,IF(F34="čtvrtletně",Q34*G34*4*$B$72,IF(F34="ročně",Q34*G34*$B$72,G34*Q34*$B$72)))))*'Základní údaje'!$H$13*IF(K34=1,'Základní údaje'!$C$12,1) -> 0
A35: 045 sklad lůžkovin | B35: 34 | D35: 1 | E35: 34 | F35: sezonně | G35: 52 | H35: 1 | I35: 26 | J35: 1 | K35: 0 | L35: Úklidová činnost č. 3 | M35: 8.5 | O35: 0.1416666667 | P35: 0 | Q35: 0 | R35: =IF(F35="denně",Q35*G35*$B$69,IF(F35="týdně",Q35*G35*$B$70,IF(F35="měsíčně",Q35*G35*$B$71,IF(F35="čtvrtletně",Q35*G35*4*$B$72,IF(F35="ročně",Q35*G35*$B$72,G35*Q35*$B$72)))))*'Základní údaje'!$H$13*IF(K35=1,'Základní údaje'!$C$12,1) -> 0
A36: 023 sklad | B36: 45 | D36: 1 | E36: =B36*D36+C36*D36 -> 45 | F36: sezonně | G36: 1 | H36: 1 | I36: 26 | J36: 1 | K36: 0 | L36: Úklidová činnost č. 3 | M36: 11 | O36: =IF(N36=0,M36*D36/60,N36*D36/60) -> 0.1833333333 | P36: =ROUND(IF(N36=0,M36/60*$B$2,N36/60*$B$2),0) -> 0 | Q36: =P36*D36 -> 0 | R36: =IF(F36="denně",Q36*G36*$B$69,IF(F36="týdně",Q36*G36*$B$70,IF(F36="měsíčně",Q36*G36*$B$71,IF(F36="čtvrtletně",Q36*G36*4*$B$72,IF(F36="ročně",Q36*G36*$B$72,G36*Q36*$B$72)))))*'Základní údaje'!$H$13*IF(K36=1,'Základní údaje'!$C$12,1) -> 0
A37: 024 sklad - nábytek | B37: 45 | D37: 1 | E37: 45 | F37: sezonně | G37: 1 | H37: 1 | I37: 26 | J37: 1 | K37: 0 | L37: Úklidová činnost č. 3 | M37: 11 | O37: 0.1833333333 | P37: 0 | Q37: 0 | R37: =IF(F37="denně",Q37*G37*$B$69,IF(F37="týdně",Q37*G37*$B$70,IF(F37="měsíčně",Q37*G37*$B$71,IF(F37="čtvrtletně",Q37*G37*4*$B$72,IF(F37="ročně",Q37*G37*$B$72,G37*Q37*$B$72)))))*'Základní údaje'!$H$13*IF(K37=1,'Základní údaje'!$C$12,1) -> 0
A38: STUDENTSKÁ KAPACITA
A39: pokoj generální úklid | B39: 14 | D39: 266 | E39: 3724 | F39: sezonně | G39: 1 | H39: 27 | I39: 34 | J39: 1 | K39: 0 | L39: Úklidová činnost č. 6 | M39: 30 | O39: 133 | P39: 0 | Q39: 0 | R39: =IF(F39="denně",Q39*G39*$B$69,IF(F39="týdně",Q39*G39*$B$70,IF(F39="měsíčně",Q39*G39*$B$71,IF(F39="čtvrtletně",Q39*G39*4*$B$72,IF(F39="ročně",Q39*G39*$B$72,G39*Q39*$B$72)))))*'Základní údaje'!$H$13*IF(K39=1,'Základní údaje'!$C$12,1) -> 0
A40: předsíň | B40: 15 | D40: 133 | E40: 1995 | F40: sezonně | G40: 2 | H40: 35 | I40: 52 | J40: 1 | K40: 0 | L40: Úklidová činnost č. 7 | M40: 25 | O40: 55.41666667 | P40: 0 | Q40: 0 | R40: =IF(F40="denně",Q40*G40*$B$69,IF(F40="týdně",Q40*G40*$B$70,IF(F40="měsíčně",Q40*G40*$B$71,IF(F40="čtvrtletně",Q40*G40*4*$B$72,IF(F40="ročně",Q40*G40*$B$72,G40*Q40*$B$72)))))*'Základní údaje'!$H$13*IF(K40=1,'Základní údaje'!$C$12,1) -> 0
A41: předsíň | B41: 15 | D41: 133 | E41: 1995 | F41: sezonně | G41: 2 | H41: 1 | I41: 26 | J41: 1 | K41: 0 | L41: Úklidová činnost č. 7 | M41: 25 | O41: 55.41666667 | P41: 0 | Q41: 0 | R41: =IF(F41="denně",Q41*G41*$B$69,IF(F41="týdně",Q41*G41*$B$70,IF(F41="měsíčně",Q41*G41*$B$71,IF(F41="čtvrtletně",Q41*G41*4*$B$72,IF(F41="ročně",Q41*G41*$B$72,G41*Q41*$B$72)))))*'Základní údaje'!$H$13*IF(K41=1,'Základní údaje'!$C$12,1) -> 0
A42: předsíň - generální úklid | B42: 15 | D42: 133 | E42: 1995 | F42: sezonně | G42: 1 | H42: 27 | I42: 34 | J42: 1 | K42: 0 | L42: Úklidová činnost č. 7 | M42: 25 | O42: 55.41666667 | P42: 0 | Q42: 0 | R42: =IF(F42="denně",Q42*G42*$B$69,IF(F42="týdně",Q42*G42*$B$70,IF(F42="měsíčně",Q42*G42*$B$71,IF(F42="čtvrtletně",Q42*G42*4*$B$72,IF(F42="ročně",Q42*G42*$B$72,G42*Q42*$B$72)))))*'Základní údaje'!$H$13*IF(K42=1,'Základní údaje'!$C$12,1) -> 0
A43: wc | C43: 1 | D43: 133 | E43: 133 | F43: sezonně | G43: 2 | H43: 35 | I43: 52 | J43: 1 | K43: 0 | L43: Úklidová činnost č. 14 | M43: 8 | O43: 17.73333333 | P43: 0 | Q43: 0 | R43: =IF(F43="denně",Q43*G43*$B$69,IF(F43="týdně",Q43*G43*$B$70,IF(F43="měsíčně",Q43*G43*$B$71,IF(F43="čtvrtletně",Q43*G43*4*$B$72,IF(F43="ročně",Q43*G43*$B$72,G43*Q43*$B$72)))))*'Základní údaje'!$H$13*IF(K43=1,'Základní údaje'!$C$12,1) -> 0
A44: wc | C44: 1 | D44: 133 | E44: 133 | F44: sezonně | G44: 2 | H44: 1 | I44: 26 | J44: 1 | K44: 0 | L44: Úklidová činnost č. 14 | M44: 8 | O44: 17.73333333 | P44: 0 | Q44: 0 | R44: =IF(F44="denně",Q44*G44*$B$69,IF(F44="týdně",Q44*G44*$B$70,IF(F44="měsíčně",Q44*G44*$B$71,IF(F44="čtvrtletně",Q44*G44*4*$B$72,IF(F44="ročně",Q44*G44*$B$72,G44*Q44*$B$72)))))*'Základní údaje'!$H$13*IF(K44=1,'Základní údaje'!$C$12,1) -> 0
A45: wc - generální úklid | C45: 1 | D45: 133 | E45: 133 | F45: sezonně | G45: 1 | H45: 27 | I45: 34 | J45: 1 | K45: 0 | L45: Úklidová činnost č. 14 | M45: 8 | O45: 17.73333333 | P45: 0 | Q45: 0 | R45: =IF(F45="denně",Q45*G45*$B$69,IF(F45="týdně",Q45*G45*$B$70,IF(F45="měsíčně",Q45*G45*$B$71,IF(F45="čtvrtletně",Q45*G45*4*$B$72,IF(F45="ročně",Q45*G45*$B$72,G45*Q45*$B$72)))))*'Základní údaje'!$H$13*IF(K45=1,'Základní údaje'!$C$12,1) -> 0
A46: koupelna se sprchou | B46: 2 | D46: 133 | E46: 266 | F46: sezonně | G46: 2 | H46: 35 | I46: 52 | J46: 1 | K46: 0 | L46: Úklidová činnost č. 15 | M46: 10 | O46: 22.16666667 | P46: 0 | Q46: 0 | R46: =IF(F46="denně",Q46*G46*$B$69,IF(F46="týdně",Q46*G46*$B$70,IF(F46="měsíčně",Q46*G46*$B$71,IF(F46="čtvrtletně",Q46*G46*4*$B$72,IF(F46="ročně",Q46*G46*$B$72,G46*Q46*$B$72)))))*'Základní údaje'!$H$13*IF(K46=1,'Základní údaje'!$C$12,1) -> 0
A47: koupelna se sprchou | B47: 2 | D47: 133 | E47: 266 | F47: sezonně | G47: 2 | H47: 1 | I47: 26 | J47: 1 | K47: 0 | L47: Úklidová činnost č. 15 | M47: 10 | O47: 22.16666667 | P47: 0 | Q47: 0 | R47: =IF(F47="denně",Q47*G47*$B$69,IF(F47="týdně",Q47*G47*$B$70,IF(F47="měsíčně",Q47*G47*$B$71,IF(F47="čtvrtletně",Q47*G47*4*$B$72,IF(F47="ročně",Q47*G47*$B$72,G47*Q47*$B$72)))))*'Základní údaje'!$H$13*IF(K47=1,'Základní údaje'!$C$12,1) -> 0
A48: koupelna se sprchou -generální úklid | B48: 2 | D48: 133 | E48: 266 | F48: sezonně | G48: 1 | H48: 27 | I48: 34 | J48: 1 | K48: 0 | L48: Úklidová činnost č. 15 | M48: 10 | O48: 22.16666667 | P48: 0 | Q48: 0 | R48: =IF(F48="denně",Q48*G48*$B$69,IF(F48="týdně",Q48*G48*$B$70,IF(F48="měsíčně",Q48*G48*$B$71,IF(F48="čtvrtletně",Q48*G48*4*$B$72,IF(F48="ročně",Q48*G48*$B$72,G48*Q48*$B$72)))))*'Základní údaje'!$H$13*IF(K48=1,'Základní údaje'!$C$12,1) -> 0
A49: kuchyňka | C49: 1 | D49: 133 | E49: 133 | F49: sezonně | G49: 2 | H49: 35 | I49: 52 | J49: 1 | K49: 0 | L49: Úklidová činnost č. 5 | M49: 12 | O49: 26.6 | P49: 0 | Q49: 0 | R49: =IF(F49="denně",Q49*G49*$B$69,IF(F49="týdně",Q49*G49*$B$70,IF(F49="měsíčně",Q49*G49*$B$71,IF(F49="čtvrtletně",Q49*G49*4*$B$72,IF(F49="ročně",Q49*G49*$B$72,G49*Q49*$B$72)))))*'Základní údaje'!$H$13*IF(K49=1,'Základní údaje'!$C$12,1) -> 0
A50: kuchyňka | C50: 1 | D50: 133 | E50: 133 | F50: sezonně | G50: 2 | H50: 1 | I50: 26 | J50: 1 | K50: 0 | L50: Úklidová činnost č. 5 | M50: 12 | O50: 26.6 | P50: 0 | Q50: 0 | R50: =IF(F50="denně",Q50*G50*$B$69,IF(F50="týdně",Q50*G50*$B$70,IF(F50="měsíčně",Q50*G50*$B$71,IF(F50="čtvrtletně",Q50*G50*4*$B$72,IF(F50="ročně",Q50*G50*$B$72,G50*Q50*$B$72)))))*'Základní údaje'!$H$13*IF(K50=1,'Základní údaje'!$C$12,1) -> 0
A51: kuchyňka - generální úklid | C51: 1 | D51: 133 | E51: 133 | F51: sezonně | G51: 1 | H51: 27 | I51: 34 | J51: 1 | K51: 0 | L51: Úklidová činnost č. 5 | M51: 12 | O51: 26.6 | P51: 0 | Q51: 0 | R51: =IF(F51="denně",Q51*G51*$B$69,IF(F51="týdně",Q51*G51*$B$70,IF(F51="měsíčně",Q51*G51*$B$71,IF(F51="čtvrtletně",Q51*G51*4*$B$72,IF(F51="ročně",Q51*G51*$B$72,G51*Q51*$B$72)))))*'Základní údaje'!$H$13*IF(K51=1,'Základní údaje'!$C$12,1) -> 0
A52: HOTEL
A53: hotelový dvolůžkový, po odjezdu | B53: 50 | D53: 1 | E53: 50 | F53: týdně | G53: 2 | J53: 1 | K53: 1 | L53: Úklidová činnost č. 8 | M53: 90 | O53: 1.5 | P53: 0 | Q53: 0 | R53: =IF(F53="denně",Q53*G53*$B$69,IF(F53="týdně",Q53*G53*$B$70,IF(F53="měsíčně",Q53*G53*$B$71,IF(F53="čtvrtletně",Q53*G53*4*$B$72,IF(F53="ročně",Q53*G53*$B$72,G53*Q53*$B$72)))))*'Základní údaje'!$H$13*IF(K53=1,'Základní údaje'!$C$12,1) -> 0
A54: hotelový dvolůžkový, průběžně | B54: 50 | D54: 1 | E54: 50 | F54: týdně | G54: 1 | J54: 1 | K54: 1 | L54: Úklidová činnost č. 9 | M54: 20 | O54: 0.3333333333 | P54: 0 | Q54: 0 | R54: =IF(F54="denně",Q54*G54*$B$69,IF(F54="týdně",Q54*G54*$B$70,IF(F54="měsíčně",Q54*G54*$B$71,IF(F54="čtvrtletně",Q54*G54*4*$B$72,IF(F54="ročně",Q54*G54*$B$72,G54*Q54*$B$72)))))*'Základní údaje'!$H$13*IF(K54=1,'Základní údaje'!$C$12,1) -> 0
A55: Ostatní
A56: okna velká | C56: 1 | D56: 500 | E56: 500 | F56: ročně | G56: 1 | J56: 1 | K56: 0 | L56: Úklidová činnost č. 12 | M56: 30 | O56: 250 | P56: 0 | Q56: 0 | R56: =IF(F56="denně",Q56*G56*$B$69,IF(F56="týdně",Q56*G56*$B$70,IF(F56="měsíčně",Q56*G56*$B$71,IF(F56="čtvrtletně",Q56*G56*4*$B$72,IF(F56="ročně",Q56*G56*$B$72,G56*Q56*$B$72)))))*'Základní údaje'!$H$13*IF(K56=1,'Základní údaje'!$C$12,1) -> 0
A57: balkonové dveře | C57: 1 | D57: 52 | E57: 52 | F57: ročně | G57: 1 | J57: 1 | K57: 0 | L57: Úklidová činnost č. 12 | M57: 30 | O57: 26 | P57: 0 | Q57: 0 | R57: =IF(F57="denně",Q57*G57*$B$69,IF(F57="týdně",Q57*G57*$B$70,IF(F57="měsíčně",Q57*G57*$B$71,IF(F57="čtvrtletně",Q57*G57*4*$B$72,IF(F57="ročně",Q57*G57*$B$72,G57*Q57*$B$72)))))*'Základní údaje'!$H$13*IF(K57=1,'Základní údaje'!$C$12,1) -> 0
A58: malé okno | C58: 1 | D58: 65 | E58: 65 | F58: ročně | G58: 1 | J58: 1 | K58: 0 | L58: Úklidová činnost č. 12 | M58: 20 | O58: 21.66666667 | P58: 0 | Q58: 0 | R58: =IF(F58="denně",Q58*G58*$B$69,IF(F58="týdně",Q58*G58*$B$70,IF(F58="měsíčně",Q58*G58*$B$71,IF(F58="čtvrtletně",Q58*G58*4*$B$72,IF(F58="ročně",Q58*G58*$B$72,G58*Q58*$B$72)))))*'Základní údaje'!$H$13*IF(K58=1,'Základní údaje'!$C$12,1) -> 0
A59: čistění matrací | C59: 1 | D59: 532 | E59: 532 | F59: ročně | G59: 1 | J59: 1 | K59: 0 | L59: Úklidová činnost č. 13 | M59: 15 | O59: 133 | P59: 0 | Q59: 0 | R59: =IF(F59="denně",Q59*G59*$B$69,IF(F59="týdně",Q59*G59*$B$70,IF(F59="měsíčně",Q59*G59*$B$71,IF(F59="čtvrtletně",Q59*G59*4*$B$72,IF(F59="ročně",Q59*G59*$B$72,G59*Q59*$B$72)))))*'Základní údaje'!$H$13*IF(K59=1,'Základní údaje'!$C$12,1) -> 0
A60: skleněné plochy na chodbách | C60: 1 | D60: 125 | E60: 125 | F60: měsíčně | G60: 1 | J60: 1 | K60: 0 | L60: umýt, vyleštit | M60: 5 | O60: 10.41666667 | P60: 0 | Q60: 0 | R60: =IF(F60="denně",Q60*G60*$B$69,IF(F60="týdně",Q60*G60*$B$70,IF(F60="měsíčně",Q60*G60*$B$71,IF(F60="čtvrtletně",Q60*G60*4*$B$72,IF(F60="ročně",Q60*G60*$B$72,G60*Q60*$B$72)))))*'Základní údaje'!$H$13*IF(K60=1,'Základní údaje'!$C$12,1) -> 0
A61: společná kuchyňka | C61: 1 | D61: 1 | E61: 1 | F61: týdně | G61: 2 | J61: 1 | K61: 0 | L61: Úklidová činnost č. 5 | M61: 20 | O61: 0.3333333333 | P61: 0 | Q61: 0 | R61: =IF(F61="denně",Q61*G61*$B$69,IF(F61="týdně",Q61*G61*$B$70,IF(F61="měsíčně",Q61*G61*$B$71,IF(F61="čtvrtletně",Q61*G61*4*$B$72,IF(F61="ročně",Q61*G61*$B$72,G61*Q61*$B$72)))))*'Základní údaje'!$H$13*IF(K61=1,'Základní údaje'!$C$12,1) -> 0
A62: sklené plochy ve vstupní chodbě | C62: 1 | D62: 1 | E62: 1 | F62: týdně | G62: 3 | J62: 1 | K62: 0 | L62: umýt, vyleštit | M62: 30 | O62: 0.5 | P62: 0 | Q62: 0 | R62: =IF(F62="denně",Q62*G62*$B$69,IF(F62="týdně",Q62*G62*$B$70,IF(F62="měsíčně",Q62*G62*$B$71,IF(F62="čtvrtletně",Q62*G62*4*$B$72,IF(F62="ročně",Q62*G62*$B$72,G62*Q62*$B$72)))))*'Základní údaje'!$H$13*IF(K62=1,'Základní údaje'!$C$12,1) -> 0
A63: kontrola stavu úklidu při odjezdu | C63: 1 | D63: 266 | E63: 266 | F63: sezonně | G63: 1 | H63: 25 | I63: 27 | J63: 1 | K63: 0 | L63: Úklidová činnost č. 10 | M63: 8 | O63: 35.46666667 | P63: 0 | Q63: 0 | R63: =IF(F63="denně",Q63*G63*$B$69,IF(F63="týdně",Q63*G63*$B$70,IF(F63="měsíčně",Q63*G63*$B$71,IF(F63="čtvrtletně",Q63*G63*4*$B$72,IF(F63="ročně",Q63*G63*$B$72,G63*Q63*$B$72)))))*'Základní údaje'!$H$13*IF(K63=1,'Základní údaje'!$C$12,1) -> 0
E64: =B64*D64+C64*D64 -> 0 | O64: =IF(N64=0,M64*D64/60,N64*D64/60) -> 0 | P64: =ROUND(IF(N64=0,M64/60*$B$2,N64/60*$B$2),0) -> 0 | Q64: =P64*D64 -> 0 | R64: =IF(F64="denně",Q64*G64*$B$69,IF(F64="týdně",Q64*G64*$B$70,IF(F64="měsíčně",Q64*G64*$B$71,IF(F64="čtvrtletně",Q64*G64*4*$B$72,IF(F64="ročně",Q64*G64*$B$72,G64*Q64*$B$72)))))*'Základní údaje'!$H$13*IF(K64=1,'Základní údaje'!$C$12,1) -> 0
E65: 0 | O65: 0 | P65: 0 | Q65: 0 | R65: =IF(F65="denně",Q65*G65*$B$69,IF(F65="týdně",Q65*G65*$B$70,IF(F65="měsíčně",Q65*G65*$B$71,IF(F65="čtvrtletně",Q65*G65*4*$B$72,IF(F65="ročně",Q65*G65*$B$72,G65*Q65*$B$72)))))*'Základní údaje'!$H$13*IF(K65=1,'Základní údaje'!$C$12,1) -> 0
E66: =B66*D66+C66*D66 -> 0 | O66: =IF(N66=0,M66*D66/60,N66*D66/60) -> 0 | P66: =ROUND(IF(N66=0,M66/60*$B$2,N66/60*$B$2),0) -> 0 | Q66: =P66*D66 -> 0 | R66: =IF(F66="denně",Q66*G66*$B$69,IF(F66="týdně",Q66*G66*$B$70,IF(F66="měsíčně",Q66*G66*$B$71,IF(F66="čtvrtletně",Q66*G66*4*$B$72,IF(F66="ročně",Q66*G66*$B$72,G66*Q66*$B$72)))))*'Základní údaje'!$H$13*IF(K66=1,'Základní údaje'!$C$12,1) -> 0
A67: Plocha celkem | B67: =SUMPRODUCT(B4:B66,D4:D66) -> 15033 | C67: [m²]
A68: Počet kusů celkem | B68: =SUMPRODUCT(C4:C47,D4:D47) -> 443 | C68: [-]
A69: Počet pracovních dnů úklidu: | B69: =NETWORKDAYS($C$1,$D$1,$A$79:$A$145) -> 1005 | L69: =NETWORKDAYS(J69,K69,J70) -> 0
A70: Počet týdnů úklidu: | B70: =B72*52 -> 208
A71: Počet měsíců úklidu: | B71: =B72*12 -> 48
A72: Počet let úklidu | B72: =YEAR(D1)-YEAR(C1) -> 4
A73: CENA CELKEM: | B73: =ROUND(SUM(R4:R66),0) -> 0 | E73: [Kč]
A78: svátky: | B78: četnost úklidu | C78: označení | D78: období úklidu | G78: Kritéria
A79: 2019-01-01 | B79: denně | C79: 0 | D79: 1. Q | G79: =$F$3 -> uklízí se
A80: 2019-04-19 | B80: týdně | C80: 1 | D80: 2. Q | G80: =B79 -> denně
A81: 2019-04-22 | B81: měsíčně | D81: 3. Q
A82: 2019-05-01 | B82: čtvrtletně | D82: 4. Q | G82: =$F$3 -> uklízí se
A83: 2019-05-08 | B83: ročně | D83: leden | G83: =B80 -> týdně
A84: 2019-07-05 | B84: sezonně | D84: únor
A85: 2019-10-28 | D85: březen | G85: =$F$3 -> uklízí se
A86: 2019-12-24 | D86: duben | G86: =B81 -> měsíčně
A87: 2019-12-25 | D87: květen
A88: 2019-12-26 | D88: červen | G88: =$F$3 -> uklízí se
A89: 2020-01-01 | D89: červenec | G89: =B82 -> čtvrtletně
A90: 2020-04-10 | D90: srpen
A91: 2020-04-13 | D91: září | G91: =$F$3 -> uklízí se
A92: 2020-05-01 | D92: říjen | G92: =B83 -> ročně
A93: 2020-05-08 | D93: listopat
A94: 2020-07-06 | D94: prosinec
A95: 2020-09-28
A96: 2020-10-28
A97: 2020-11-17
A98: 2020-12-24
A99: 2020-12-25
A100: 2021-01-01
A101: 2021-04-02
A102: 2021-04-05
A103: 2021-07-05
A104: 2021-07-06
A105: 2021-09-28
A106: 2021-10-28
A107: 2021-11-17
A108: 2021-12-24
A109: 2022-04-15
A110: 2022-04-18
A111: 2022-07-05
A112: 2022-07-06
A113: 2022-09-28
A114: 2022-10-28
A115: 2022-11-17
A116: 2022-12-26
A117: 2023-04-07
A118: 2023-04-10
A119: 2023-05-01
A120: 2023-05-08
A121: 2023-07-05
A122: 2023-07-06
A123: 2023-09-28
A124: 2023-11-17
A125: 2023-12-25
A126: 2023-12-26
A127: 2024-01-01
A128: 2024-03-29
A129: 2024-04-01
A130: 2024-05-01
A131: 2024-05-08
A132: 2024-07-05
A133: 2024-10-28
A134: 2024-12-24
A135: 2024-12-26
A136: 2024-12-26
A137: 2025-01-01
A138: 2025-04-18
A139: 2025-04-21
A140: 2025-10-28
A141: 2025-11-17
A142: 2025-12-24
A143: 2025-12-25
A144: 2025-12-26

Sheet Karty úklidu
A1: V komentáři jsou zkatky pro tisk
A2: Karta úklidu | D2: ='Rozpis úklidu'!$A$1 -> kolej: Vltava, VŠE
A3: DENNÍ ÚKLID DNE: | B3: =NOW() -> 2020-02-21T12:38:39.410
A4: ='Rozpis úklidu'!$A$3 -> Úklidová jednotka | B4: ='Rozpis úklidu'!$D$3 -> počet úklidových jednotek | C4: Doba úklidu [hod.] | D4: ='Rozpis úklidu'!$L$3 -> Popis činnosti | E4: ='Rozpis úklidu'!$Q$3 -> cena celkem za všechny úklidové jednotky (prac. dny) [Kč] | F4: Správně uklizené jednotky | G4: Smluvní pokuta [Kč] | H4: Poznámka
A5: ='Rozpis úklidu'!A5 -> výtah | B5: ='Rozpis úklidu'!D5 -> 6 | C5: =IF('Rozpis úklidu'!N5=0,'Rozpis úklidu'!M5*B5/60,'Rozpis úklidu'!N5*B5/60) -> 1 | D5: ='Rozpis úklidu'!L5 -> Úklidová činnost č. 11 | E5: ='Rozpis úklidu'!P5*F5 -> 0 | F5: 6 | G5: =IF(F5<B5,(B5-F5)*('Rozpis úklidu'!P5)*2,0) -> 0
A6: ='Rozpis úklidu'!A6 -> patro chodba s krčkem | B6: ='Rozpis úklidu'!D6 -> 5 | C6: =IF('Rozpis úklidu'!N6=0,'Rozpis úklidu'!M6*B6/60,'Rozpis úklidu'!N6*B6/60) -> 3.333333333 | D6: ='Rozpis úklidu'!L6 -> Úklidová činnost č. 1 | E6: ='Rozpis úklidu'!P6*F6 -> 0 | F6: 5 | G6: =IF(F6<B6,(B6-F6)*('Rozpis úklidu'!P6)*2,0) -> 0
A7: ='Rozpis úklidu'!A11 -> hala | B7: ='Rozpis úklidu'!D11 -> 1 | C7: =IF('Rozpis úklidu'!N11=0,'Rozpis úklidu'!M11*B7/60,'Rozpis úklidu'!N11*B7/60) -> 0.5 | D7: ='Rozpis úklidu'!L11 -> Úklidová činnost č. 1 | E7: ='Rozpis úklidu'!P11*F7 -> 0 | F7: 1 | G7: =IF(F7<B7,(B7-F7)*('Rozpis úklidu'!P11)*2,0) -> 0
A8: ='Rozpis úklidu'!A12 -> přilehlé venkovní schodiště | B8: ='Rozpis úklidu'!D12 -> 1 | C8: =IF('Rozpis úklidu'!N12=0,'Rozpis úklidu'!M12*B8/60,'Rozpis úklidu'!N12*B8/60) -> 0.08333333333 | D8: ='Rozpis úklidu'!L12 -> zamést, sesbírat odpadky | E8: ='Rozpis úklidu'!P12*F8 -> 0 | F8: 1 | G8: =IF(F8<B8,(B8-F8)*('Rozpis úklidu'!P12)*2,0) -> 0
A9: ='Rozpis úklidu'!A15 -> místnost + pračky a sušičky | B9: ='Rozpis úklidu'!D15 -> 1 | C9: =IF('Rozpis úklidu'!N15=0,'Rozpis úklidu'!M15*B9/60,'Rozpis úklidu'!N15*B9/60) -> 0.1666666667 | D9: ='Rozpis úklidu'!L15 -> Úklidová činnost č. 4 | E9: ='Rozpis úklidu'!P15*F9 -> 0 | F9: 1 | G9: =IF(F9<B9,(B9-F9)*('Rozpis úklidu'!P15)*2,0) -> 0
A10: Úklidová pohotovost + Operativní úklidové práce dle požadavku vedoucí koleje | B10: ='Základní údaje'!B11 -> 0 | E10: =B10/60*F10 -> 0 | G10: 0
B11: Celkem hodin | C11: =SUM(C5:C9) -> 5.083333333 | D11: K FAKTURACI CELKEM: | E11: =SUM(E5:E10) -> 0 | G11: =SUM(G5:G10) -> 0
A12: Podpis vedoucí směny: | D12: Podpis zástupce vedení koleje:
A14: Karta úklidu | D14: ='Rozpis úklidu'!$A$1 -> kolej: Vltava, VŠE
A15: TÝDENNÍ ÚKLID TÝDEN: | B15: =WEEKNUM(TODAY(),1) -> 8 | D15: =(NOW()) -> 2020-02-21T12:38:39.410
A16: ='Rozpis úklidu'!$A$3 -> Úklidová jednotka | B16: ='Rozpis úklidu'!$D$3 -> počet úklidových jednotek | C16: Doba úklidu [hod.] | D16: ='Rozpis úklidu'!$L$3 -> Popis činnosti | E16: ='Rozpis úklidu'!$Q$3 -> cena celkem za všechny úklidové jednotky (prac. dny) [Kč] | F16: Správně uklizené jednotky | G16: Smluvní pokuta [Kč] | H16: Poznámka
A17: ='Rozpis úklidu'!A4 -> schody na střechu | B17: ='Rozpis úklidu'!D4/('Rozpis úklidu'!I4-'Rozpis úklidu'!H4+1)*'Rozpis úklidu'!G4 -> 3 | C17: =IF('Rozpis úklidu'!N4=0,'Rozpis úklidu'!M4*B17/60,'Rozpis úklidu'!N4*B17/60) -> 0.175 | D17: ='Rozpis úklidu'!L4 -> vytření, setření prachu, včetně zábradlí | E17: ='Rozpis úklidu'!P4*F17 -> 0 | F17: 3 | G17: =IF(F17<B17,(B17-F17)*('Rozpis úklidu'!P4)*2,0) -> 0
A18: ='Rozpis úklidu'!A7 -> přilehlé schodiště | B18: ='Rozpis úklidu'!D7/('Rozpis úklidu'!I7-'Rozpis úklidu'!H7+1)*'Rozpis úklidu'!G7 -> 30 | C18: =IF('Rozpis úklidu'!N7=0,'Rozpis úklidu'!M7*B18/60,'Rozpis úklidu'!N7*B18/60) -> 0.5 | D18: ='Rozpis úklidu'!L7 -> Úklidová činnost č. 1 | E18: ='Rozpis úklidu'!P7*F18 -> 0 | F18: 30 | G18: =IF(F18<B18,(B18-F18)*('Rozpis úklidu'!P7)*2,0) -> 0
A19: ='Rozpis úklidu'!A8 -> přilehlé zábradlí | B19: ='Rozpis úklidu'!D8/('Rozpis úklidu'!I8-'Rozpis úklidu'!H8+1)*'Rozpis úklidu'!G8 -> 30 | C19: =IF('Rozpis úklidu'!N8=0,'Rozpis úklidu'!M8*B19/60,'Rozpis úklidu'!N8*B19/60) -> 0.5 | D19: ='Rozpis úklidu'!L8 -> mytí zábradlí | E19: ='Rozpis úklidu'!P8*F19 -> 0 | F19: 30 | G19: =IF(F19<B19,(B19-F19)*('Rozpis úklidu'!P8)*2,0) -> 0
A20: ='Rozpis úklidu'!A9 -> studovna | B20: ='Rozpis úklidu'!D9/('Rozpis úklidu'!I9-'Rozpis úklidu'!H9+1)*'Rozpis úklidu'!G9 -> 20 | C20: =IF('Rozpis úklidu'!N9=0,'Rozpis úklidu'!M9*B20/60,'Rozpis úklidu'!N9*B20/60) -> 5 | D20: ='Rozpis úklidu'!L9 -> Úklidová činnost č. 3 | E20: ='Rozpis úklidu'!P9*F20 -> 0 | F20: 20 | G20: =IF(F20<B20,(B20-F20)*('Rozpis úklidu'!P9)*2,0) -> 0
A21: ='Rozpis úklidu'!A10 -> sušárny | B21: ='Rozpis úklidu'!D10/('Rozpis úklidu'!I10-'Rozpis úklidu'!H10+1)*'Rozpis úklidu'!G10 -> 2 | C21: =IF('Rozpis úklidu'!N10=0,'Rozpis úklidu'!M10*B21/60,'Rozpis úklidu'!N10*B21/60) -> 0.3333333333 | D21: ='Rozpis úklidu'!L10 -> Úklidová činnost č. 3 | E21: ='Rozpis úklidu'!P10*F21 -> 0 | F21: 2 | G21: =IF(F21<B21,(B21-F21)*('Rozpis úklidu'!P10)*2,0) -> 0
A22: ='Rozpis úklidu'!A13 -> kanceláře | B22: ='Rozpis úklidu'!D13/('Rozpis úklidu'!I13-'Rozpis úklidu'!H13+1)*'Rozpis úklidu'!G13 -> 1 | C22: =IF('Rozpis úklidu'!N13=0,'Rozpis úklidu'!M13*B22/60,'Rozpis úklidu'!N13*B22/60) -> 0.1666666667 | D22: ='Rozpis úklidu'!L13 -> Úklidová činnost č. 3 | E22: ='Rozpis úklidu'!P13*F22 -> 0 | F22: 1 | G22: =IF(F22<B22,(B22-F22)*('Rozpis úklidu'!P13)*2,0) -> 0
A23: ='Rozpis úklidu'!A14 -> recepce | B23: ='Rozpis úklidu'!D14/('Rozpis úklidu'!I14-'Rozpis úklidu'!H14+1)*'Rozpis úklidu'!G14 -> 1 | C23: =IF('Rozpis úklidu'!N14=0,'Rozpis úklidu'!M14*B23/60,'Rozpis úklidu'!N14*B23/60) -> 0.25 | D23: ='Rozpis úklidu'!L14 -> Úklidová činnost č. 3 | E23: ='Rozpis úklidu'!P14*F23 -> 0 | F23: 1 | G23: =IF(F23<B23,(B23-F23)*('Rozpis úklidu'!P14)*2,0) -> 0
A24: ='Rozpis úklidu'!A16 -> chodba suterén vč.nouz.východu | B24: ='Rozpis úklidu'!D16/('Rozpis úklidu'!I16-'Rozpis úklidu'!H16+1)*'Rozpis úklidu'!G16 -> 1 | C24: =IF('Rozpis úklidu'!N16=0,'Rozpis úklidu'!M16*B24/60,'Rozpis úklidu'!N16*B24/60) -> 0.6333333333 | D24: ='Rozpis úklidu'!L16 -> Úklidová činnost č. 1 | E24: ='Rozpis úklidu'!P16*F24 -> 0 | F24: 1 | G24: =IF(F24<B24,(B24-F24)*('Rozpis úklidu'!P16)*2,0) -> 0
A25: ='Rozpis úklidu'!A17 -> místnost úklízeček a úklid.prost. | B25: ='Rozpis úklidu'!D17/('Rozpis úklidu'!I17-'Rozpis úklidu'!H17+1)*'Rozpis úklidu'!G17 -> 1 | C25: =IF('Rozpis úklidu'!N17=0,'Rozpis úklidu'!M17*B25/60,'Rozpis úklidu'!N17*B25/60) -> 0.08333333333 | D25: ='Rozpis úklidu'!L17 -> Úklidová činnost č. 3 | E25: ='Rozpis úklidu'!P17*F25 -> 0 | F25: 1 | G25: =IF(F25<B25,(B25-F25)*('Rozpis úklidu'!P17)*2,0) -> 0
A26: ='Rozpis úklidu'!A18 -> 045 sklad lůžkovin | B26: ='Rozpis úklidu'!D18/('Rozpis úklidu'!I18-'Rozpis úklidu'!H18+1)*'Rozpis úklidu'!G18 -> 2 | C26: =IF('Rozpis úklidu'!N18=0,'Rozpis úklidu'!M18*B26/60,'Rozpis úklidu'!N18*B26/60) -> 0.2833333333 | D26: ='Rozpis úklidu'!L18 -> Úklidová činnost č. 3 | E26: ='Rozpis úklidu'!P18*F26 -> 0 | F26: 2 | G26: =IF(F26<B26,(B26-F26)*('Rozpis úklidu'!P18)*2,0) -> 0
A27: ='Rozpis úklidu'!A61 -> společná kuchyňka | B27: =CEILING('Rozpis úklidu'!D61/('Rozpis úklidu'!I61-'Rozpis úklidu'!H61+1)*'Rozpis úklidu'!G61,1) -> 2 | C27: =IF('Rozpis úklidu'!N61=0,'Rozpis úklidu'!M61*B27/60,'Rozpis úklidu'!N61*B27/60) -> 0.6666666667 | D27: ='Rozpis úklidu'!L61 -> Úklidová činnost č. 5 | E27: ='Rozpis úklidu'!P61*F27 -> 0 | F27: 2 | G27: =IF(F27<B27,(B27-F27)*('Rozpis úklidu'!P61)*2,0) -> 0
A28: ='Rozpis úklidu'!A62 -> sklené plochy ve vstupní chodbě | B28: =CEILING('Rozpis úklidu'!D62/('Rozpis úklidu'!I62-'Rozpis úklidu'!H62+1)*'Rozpis úklidu'!G62,1) -> 3 | C28: =IF('Rozpis úklidu'!N62=0,'Rozpis úklidu'!M62*B28/60,'Rozpis úklidu'!N62*B28/60) -> 1.5 | D28: ='Rozpis úklidu'!L62 -> umýt, vyleštit | E28: ='Rozpis úklidu'!P62*F28 -> 0 | F28: 3 | G28: =IF(F28<B28,(B28-F28)*('Rozpis úklidu'!P62)*2,0) -> 0
A29: =CONCATENATE('Rozpis úklidu'!A40," (",CEILING('Rozpis úklidu'!D40/('Rozpis úklidu'!I40-'Rozpis úklidu'!H40+1)*'Rozpis úklidu'!G40,1),")") -> předsíň (15) | B29: 0 | C29: =IF('Rozpis úklidu'!N40=0,'Rozpis úklidu'!M40*B29/60,'Rozpis úklidu'!N40*B29/60) -> 0 | D29: ='Rozpis úklidu'!L40 -> Úklidová činnost č. 7 | E29: ='Rozpis úklidu'!P40*F29 -> 0 | F29: 0 | G29: =IF(F29<B29,(B29-F29)*('Rozpis úklidu'!P40)*2,0) -> 0
A30: =CONCATENATE('Rozpis úklidu'!A43," (",CEILING('Rozpis úklidu'!D43/('Rozpis úklidu'!I43-'Rozpis úklidu'!H43+1)*'Rozpis úklidu'!G43,1),")") -> wc (15) | B30: 0 | C30: =IF('Rozpis úklidu'!N43=0,'Rozpis úklidu'!M43*B30/60,'Rozpis úklidu'!N43*B30/60) -> 0 | D30: ='Rozpis úklidu'!L43 -> Úklidová činnost č. 14 | E30: ='Rozpis úklidu'!P43*F30 -> 0 | F30: 0 | G30: =IF(F30<B30,(B30-F30)*('Rozpis úklidu'!P43)*2,0) -> 0
A31: =CONCATENATE('Rozpis úklidu'!A46," (",CEILING('Rozpis úklidu'!D46/('Rozpis úklidu'!I46-'Rozpis úklidu'!H46+1)*'Rozpis úklidu'!G46,1),")") -> koupelna se sprchou (15) | B31: 0 | C31: =IF('Rozpis úklidu'!N46=0,'Rozpis úklidu'!M46*B31/60,'Rozpis úklidu'!N46*B31/60) -> 0 | D31: ='Rozpis úklidu'!L46 -> Úklidová činnost č. 15 | E31: ='Rozpis úklidu'!P46*F31 -> 0 | F31: 0 | G31: =IF(F31<B31,(B31-F31)*('Rozpis úklidu'!P46)*2,0) -> 0
A32: =CONCATENATE('Rozpis úklidu'!A49," (",CEILING('Rozpis úklidu'!D49/('Rozpis úklidu'!I49-'Rozpis úklidu'!H49+1)*'Rozpis úklidu'!G49,1),")") -> kuchyňka (15) | B32: 0 | C32: =IF('Rozpis úklidu'!N49=0,'Rozpis úklidu'!M49*B32/60,'Rozpis úklidu'!N49*B32/60) -> 0 | D32: ='Rozpis úklidu'!L49 -> Úklidová činnost č. 5 | E32: ='Rozpis úklidu'!P49*F32 -> 0 | F32: 0 | G32: =IF(F32<B32,(B32-F32)*('Rozpis úklidu'!P49)*2,0) -> 0
A33: =CONCATENATE('Rozpis úklidu'!A53," (",CEILING('Rozpis úklidu'!D53/('Rozpis úklidu'!I53-'Rozpis úklidu'!H53+1)*'Rozpis úklidu'!G53,1),")") -> hotelový dvolůžkový, po odjezdu (2) | B33: 0 | C33: =IF('Rozpis úklidu'!N53=0,'Rozpis úklidu'!M53*B33/60,'Rozpis úklidu'!N53*B33/60) -> 0 | D33: ='Rozpis úklidu'!L53 -> Úklidová činnost č. 8 | E33: ='Rozpis úklidu'!P53*F33 -> 0 | F33: 0 | G33: =IF(F33<B33,(B33-F33)*('Rozpis úklidu'!P53)*2,0) -> 0
A34: =CONCATENATE('Rozpis úklidu'!A54," (",CEILING('Rozpis úklidu'!D54/('Rozpis úklidu'!I54-'Rozpis úklidu'!H54+1)*'Rozpis úklidu'!G54,1),")") -> hotelový dvolůžkový, průběžně (1) | B34: 0 | C34: =IF('Rozpis úklidu'!N54=0,'Rozpis úklidu'!M54*B34/60,'Rozpis úklidu'!N54*B34/60) -> 0 | D34: ='Rozpis úklidu'!L54 -> Úklidová činnost č. 9 | E34: ='Rozpis úklidu'!P54*F34 -> 0 | F34: 0 | G34: =IF(F34<B34,(B34-F34)*('Rozpis úklidu'!P54)*2,0) -> 0
B35: celkem hodin/den | C35: =SUM(C17:C34)/5 -> 2.018333333 | D35: K FAKTURACI CELKEM: | E35: =SUM(E17:E34) -> 0 | G35: =SUM(G17:G34) -> 0
A36: Podpis vedoucí směny: | D36: Podpis zástupce vedení koleje:
A38: Karta úklidu | D38: ='Rozpis úklidu'!$A$1 -> kolej: Vltava, VŠE
A39: MĚSÍČNÍ ÚKLID MĚSÍC: | B39: =MONTH(D39) -> 2 | D39: =NOW() -> 2020-02-21T12:38:39.410
A40: ='Rozpis úklidu'!$A$3 -> Úklidová jednotka | B40: ='Rozpis úklidu'!$D$3 -> počet úklidových jednotek | C40: Doba úklidu [hod.] | D40: ='Rozpis úklidu'!$L$3 -> Popis činnosti | E40: ='Rozpis úklidu'!$Q$3 -> cena celkem za všechny úklidové jednotky (prac. dny) [Kč] | F40: Správně uklizené jednotky | G40: Smluvní pokuta [Kč] | H40: Poznámka
A41: =CONCATENATE('Rozpis úklidu'!A60," / ",'Rozpis úklidu'!F60) -> skleněné plochy na chodbách / měsíčně | B41: ='Rozpis úklidu'!E60 -> 125 | C41: =IF('Rozpis úklidu'!N60=0,'Rozpis úklidu'!M60*B41/60,'Rozpis úklidu'!N60*B41/60) -> 10.41666667 | D41: ='Rozpis úklidu'!L60 -> umýt, vyleštit | E41: ='Rozpis úklidu'!P60*F41 -> 0 | F41: =B41 -> 125 | G41: =IF(F41<B41,(B41-F41)*('Rozpis úklidu'!P60)*2,0) -> 0
A42: =CONCATENATE('Rozpis úklidu'!A19," / ",'Rozpis úklidu'!F19," (",'Rozpis úklidu'!D19,")") -> 023 sklad / sezonně (1) | B42: 0 | C42: =IF('Rozpis úklidu'!N19=0,'Rozpis úklidu'!M19*B42/60,'Rozpis úklidu'!N19*B42/60) -> 0 | D42: ='Rozpis úklidu'!L19 -> Úklidová činnost č. 3 | E42: ='Rozpis úklidu'!P19*F42 -> 0 | F42: =B42 -> 0 | G42: =IF(F42<B42,(B42-F42)*('Rozpis úklidu'!P61)*2,0) -> 0
A43: =CONCATENATE('Rozpis úklidu'!A20," / ",'Rozpis úklidu'!F20," (",'Rozpis úklidu'!D20,")") -> 024 sklad - nábytek / sezonně (1) | B43: 0 | C43: =IF('Rozpis úklidu'!N20=0,'Rozpis úklidu'!M20*B43/60,'Rozpis úklidu'!N20*B43/60) -> 0 | D43: ='Rozpis úklidu'!L20 -> Úklidová činnost č. 3 | E43: ='Rozpis úklidu'!P20*F43 -> 0 | F43: 0 | G43: =IF(F43<B43,(B43-F43)*('Rozpis úklidu'!P62)*2,0) -> 0
A44: =CONCATENATE('Rozpis úklidu'!A56," / ",'Rozpis úklidu'!F56," (",'Rozpis úklidu'!D56,")") -> okna velká / ročně (500) | B44: 0 | C44: =IF('Rozpis úklidu'!N56=0,'Rozpis úklidu'!M56*B44/60,'Rozpis úklidu'!N56*B44/60) -> 0 | D44: ='Rozpis úklidu'!L56 -> Úklidová činnost č. 12 | E44: ='Rozpis úklidu'!P56*F44 -> 0 | F44: 0 | G44: =IF(F44<B44,(B44-F44)*('Rozpis úklidu'!P56)*2,0) -> 0
A45: =CONCATENATE('Rozpis úklidu'!A57," / ",'Rozpis úklidu'!F57," (",'Rozpis úklidu'!D57,")") -> balkonové dveře / ročně (52) | B45: 0 | C45: =IF('Rozpis úklidu'!N57=0,'Rozpis úklidu'!M57*B45/60,'Rozpis úklidu'!N57*B45/60) -> 0 | D45: ='Rozpis úklidu'!L57 -> Úklidová činnost č. 12 | E45: ='Rozpis úklidu'!P57*F45 -> 0 | F45: =B45 -> 0 | G45: =IF(F45<B45,(B45-F45)*('Rozpis úklidu'!P57)*2,0) -> 0
A46: =CONCATENATE('Rozpis úklidu'!A58," / ",'Rozpis úklidu'!F58," (",'Rozpis úklidu'!D58,")") -> malé okno / ročně (65) | B46: 0 | C46: =IF('Rozpis úklidu'!N58=0,'Rozpis úklidu'!M58*B46/60,'Rozpis úklidu'!N58*B46/60) -> 0 | D46: ='Rozpis úklidu'!L58 -> Úklidová činnost č. 12 | E46: ='Rozpis úklidu'!P58*F46 -> 0 | F46: 0 | G46: =IF(F46<B46,(B46-F46)*('Rozpis úklidu'!P58)*2,0) -> 0
A47: =CONCATENATE('Rozpis úklidu'!A59," / ",'Rozpis úklidu'!F59," (",'Rozpis úklidu'!D59,")") -> čistění matrací / ročně (532) | B47: 0 | C47: =IF('Rozpis úklidu'!N59=0,'Rozpis úklidu'!M59*B47/60,'Rozpis úklidu'!N59*B47/60) -> 0 | D47: ='Rozpis úklidu'!L59 -> Úklidová činnost č. 13 | E47: ='Rozpis úklidu'!P59*F47 -> 0 | F47: 0 | G47: =IF(F47<B47,(B47-F47)*('Rozpis úklidu'!P59)*2,0) -> 0
B48: celkem hodin/den | C48: =SUM(C41:C47)/21 -> 0.496031746 | D48: K FAKTURACI CELKEM: | E48: =SUM(E41:E47) -> 0 | G48: =SUM(G41:G47) -> 0
A49: Podpis vedoucí směny: | D49: Podpis zástupce vedení koleje:
A51: Karta úklidu | D51: ='Rozpis úklidu'!$A$1 -> kolej: Vltava, VŠE
A52: SEZONNÍ ÚKLID MĚSÍC: | B52: =MONTH(D52) -> 2 | D52: =(NOW()) -> 2020-02-21T12:38:39.410
A53: ='Rozpis úklidu'!$A$3 -> Úklidová jednotka | B53: ='Rozpis úklidu'!$D$3 -> počet úklidových jednotek | C53: Doba úklidu [hod.] | D53: ='Rozpis úklidu'!$L$3 -> Popis činnosti | E53: ='Rozpis úklidu'!$Q$3 -> cena celkem za všechny úklidové jednotky (prac. dny) [Kč] | F53: Správně uklizené jednotky | G53: Smluvní pokuta [Kč] | H53: Poznámka
A54: =CONCATENATE('Rozpis úklidu'!A39," / ",'Rozpis úklidu'!F39," (",'Rozpis úklidu'!D39,")") -> pokoj generální úklid / sezonně (266) | B54: 0 | C54: =IF('Rozpis úklidu'!N39=0,'Rozpis úklidu'!M39*B54/60,'Rozpis úklidu'!N39*B54/60) -> 0 | D54: ='Rozpis úklidu'!L39 -> Úklidová činnost č. 6 | E54: =IF(B54>0,'Rozpis úklidu'!P39*F54,0) -> 0 | F54: =B54 -> 0 | G54: =IF(F54<B54,(B54-F54)*'Rozpis úklidu'!P39*2,0) -> 0
A55: =CONCATENATE('Rozpis úklidu'!A42," / ",'Rozpis úklidu'!F42," (",'Rozpis úklidu'!D42,")") -> předsíň - generální úklid / sezonně (133) | B55: 0 | C55: =IF('Rozpis úklidu'!N42=0,'Rozpis úklidu'!M42*B55/60,'Rozpis úklidu'!N42*B55/60) -> 0 | D55: ='Rozpis úklidu'!L42 -> Úklidová činnost č. 7 | E55: =IF(B55>0,'Rozpis úklidu'!P42*F55,0) -> 0 | F55: 0 | G55: =IF(F55<B55,(B55-F55)*'Rozpis úklidu'!P42*2,0) -> 0
A56: =CONCATENATE('Rozpis úklidu'!A45," / ",'Rozpis úklidu'!F45," (",'Rozpis úklidu'!D45,")") -> wc - generální úklid / sezonně (133) | B56: 0 | C56: =IF('Rozpis úklidu'!N45=0,'Rozpis úklidu'!M45*B56/60,'Rozpis úklidu'!N45*B56/60) -> 0 | D56: ='Rozpis úklidu'!L45 -> Úklidová činnost č. 14 | E56: =IF(B56>0,'Rozpis úklidu'!P45*F56,0) -> 0 | F56: 0 | G56: =IF(F56<B56,(B56-F56)*'Rozpis úklidu'!P45*2,0) -> 0
A57: =CONCATENATE('Rozpis úklidu'!A48," / ",'Rozpis úklidu'!F48," (",'Rozpis úklidu'!D48,")") -> koupelna se sprchou -generální úklid / sezonně (133) | B57: 0 | C57: =IF('Rozpis úklidu'!N48=0,'Rozpis úklidu'!M48*B57/60,'Rozpis úklidu'!N48*B57/60) -> 0 | D57: ='Rozpis úklidu'!L48 -> Úklidová činnost č. 15 | E57: =IF(B57>0,'Rozpis úklidu'!P48*F57,0) -> 0 | F57: 0 | G57: =IF(F57<B57,(B57-F57)*'Rozpis úklidu'!P48*2,0) -> 0
A58: =CONCATENATE('Rozpis úklidu'!A51," / ",'Rozpis úklidu'!F51," (",'Rozpis úklidu'!D51,")") -> kuchyňka - generální úklid / sezonně (133) | B58: 0 | C58: =IF('Rozpis úklidu'!N51=0,'Rozpis úklidu'!M51*B58/60,'Rozpis úklidu'!N51*B58/60) -> 0 | D58: ='Rozpis úklidu'!L51 -> Úklidová činnost č. 5 | E58: =IF(B58>0,'Rozpis úklidu'!P51*F58,0) -> 0 | F58: 0 | G58: =IF(F58<B58,(B58-F58)*'Rozpis úklidu'!P51*2,0) -> 0
A59: =CONCATENATE('Rozpis úklidu'!A63," / ",'Rozpis úklidu'!F63," (",'Rozpis úklidu'!D63,")") -> kontrola stavu úklidu při odjezdu / sezonně (266) | B59: 0 | C59: =IF('Rozpis úklidu'!N63=0,'Rozpis úklidu'!M63*B59/60,'Rozpis úklidu'!N63*B59/60) -> 0 | D59: ='Rozpis úklidu'!L63 -> Úklidová činnost č. 10 | E59: =IF(B59>0,'Rozpis úklidu'!P63*F59,0) -> 0 | F59: 0 | G59: =IF(F59<B59,(B59-F59)*'Rozpis úklidu'!P63*2,0) -> 0
B60: celkem hodin | C60: =SUM(C54:C59) -> 0 | D60: K FAKTURACI CELKEM: | E60: =SUM(E54:E59) -> 0 | G60: =SUM(G54:G59) -> 0
A61: Podpis vedoucí směny: | D61: Podpis zástupce vedení koleje:
A63: Karta úklidu | D63: ='Rozpis úklidu'!$A$1 -> kolej: Vltava, VŠE
A64: ÚKLID O VÍKENDU DNE: | B64: =(NOW()) -> 2020-02-21T12:38:39.410
A65: ='Rozpis úklidu'!$A$3 -> Úklidová jednotka | B65: ='Rozpis úklidu'!$D$3 -> počet úklidových jednotek | C65: Doba úklidu [hod.] | D65: ='Rozpis úklidu'!$L$3 -> Popis činnosti | E65: cena celkem za všechny úklidové jednotky (VÍKEND) [Kč] | F65: Správně uklizené jednotky | G65: Smluvní pokuta [Kč] | H65: Poznámka
A66: =CONCATENATE('Rozpis úklidu'!A53," / ",'Rozpis úklidu'!F53," (",'Rozpis úklidu'!D53,")") -> hotelový dvolůžkový, po odjezdu / týdně (1) | B66: 0 | C66: =IF('Rozpis úklidu'!N53=0,'Rozpis úklidu'!M53*B66/60,'Rozpis úklidu'!N53*B66/60) -> 0 | D66: ='Rozpis úklidu'!L53 -> Úklidová činnost č. 8 | E66: =IF(B66>0,'Rozpis úklidu'!P53*F66*'Základní údaje'!$C$11,0) -> 0 | F66: =B66 -> 0 | G66: =IF(F66<B66,(B66-F66)*'Rozpis úklidu'!P53*2*'Základní údaje'!$C$11,0) -> 0
A67: =CONCATENATE('Rozpis úklidu'!A54," / ",'Rozpis úklidu'!F54," (",'Rozpis úklidu'!D54,")") -> hotelový dvolůžkový, průběžně / týdně (1) | B67: 0 | C67: =IF('Rozpis úklidu'!N54=0,'Rozpis úklidu'!M54*B67/60,'Rozpis úklidu'!N54*B67/60) -> 0 | D67: ='Rozpis úklidu'!L54 -> Úklidová činnost č. 9 | E67: =IF(B67>0,'Rozpis úklidu'!P54*F67*'Základní údaje'!$C$11,0) -> 0 | F67: 0 | G67: =IF(F67<B67,(B67-F67)*'Rozpis úklidu'!P54*2*'Základní údaje'!$C$11,0) -> 0
B68: celkem hodin/víkend | C68: =SUM(C66:C67) -> 0 | D68: K FAKTURACI CELKEM: | E68: =SUM(E66:E67) -> 0 | G68: =SUM(G66:G67) -> 0
A69: Podpis vedoucí směny: | D69: Podpis zástupce vedení koleje:

Sheet Činnosti úklidu
B1: Úklidová činnost
B2: Úklidová činnost probíhá v čase od 07:00 hod. do 15.00 hod. v jednosměnném provozu v pětidenním pracovním týdnu, úklid hotelových pokojů musí být dle potřeby zajištěn i o víkendu. V době nastěhování a vystěhování studentů koncem letního semestru a začátkem zimního semestru stanovuje dobu pro úklid podle aktuálních potřeb vedoucí/zástupce vedoucí koleje a to včetně úklidu o víkendu. Při úklidu je potřeba používat úklidové, čistící a desinfekční prostředky vhodné pro daný předmět úklidu a dodržovat návody na použití příslušných úklidových, čistících a desinfekčních prostředků a bezpečnostní a hygienická pravidla
A3: Definice pojmů:
A4: Zametání | B4: pomocí vhodného smetáku zamést dané podlahové plochy.
A5: Vytírání | B5: pomocí mopu za použití vody a odpovídajícího saponátu vytřít dané podlahové plochy.
A6: Mytí | B6: pomocí hadru, utěrky nebo houbičky, za použití vody a odpovídajícího saponátu, umýt plochy nábytku, dveří, spotřebičů, keramických a jiných obkladů, topení apod.
A7: Čištění | B7: důkladné čištění, zvláště skvrn, za pomocí odpovídajících čisticích prostředků, ploch nábytku, dveří, spotřebičů, keramických a jiných obkladů, topení apod.
A8: Desinfekce | B8: po umytí nebo vyčištění daných ploch, podlah, spotřebičů aj. použít podle návodu odpovídající desinfekční prostředek.
A9: Leštění | B9: leštění všech skleněných a zrcadlových ploch za použití odpovídajícího přípravku na mytí a leštění skel.
A10: Luxování | B10: čištění podlah za použití vysavače.
A11: Strojové čištění | B11: se provádí za použití čistícího stroje na vodní nebo parní bázi (strojové čištění postelí, matrací, koberců apod.).
A12: Stírání prachu | B12: setření prachu vhodnou utěrkou za použití odpovídajícího přípravku na odstranění prachu, odstranění pavučin.
A13: Úklid odpadů | B13: řádné uvolnění, umytí, vyčištění a vydesinfikování odpadů na soc. zařízeních, WC, umývárnách a sprchových koutech za použití odpovídajících přípravků.
A14: Mimořádný úklid | B14: úklid znečištěného WC (mimo mísu), umývárny nebo společných prostor zvratky nebo exkrementy (uklízečka vyrozumí vedoucí/zástupce vedoucí koleje).
A15: Mytí oken | B15: umytí parapetů na mokro za použití odpovídajícího saponátu, umytí rámů oken na mokro za použití odpovídajícího saponátu, umytí a vyleštění oken odpovídajícím přípravkem na mytí a leštění oken.
A16: Zalévání květin | B16: zalití květin čistou odstátou vodou v přiměřeném množství s ohledem na druh rostliny. Podle potřeby použít odpovídající hnojivo v dávkování podle návodu k použití.
A17: Vynášení a likvidace odpadu | B17: vynesení odpadu ze všech odpadních nádob (i z prostoru okolo těchto nádob), a ze skartovaček, umytí odpadních nádob a doplnění pytlů na odpadky do odpadních nádob. Odpad dle možnosti vhodným způsobem třídit.
A18: Doplňování hotelových potřeb | B18: v hotelovém provozu doplnit toaletní papír do zásobníků doplnit ručníky a hotelové mýdlo.
A20: Číslo typové činnosti | B20: Popis typových pracovních činností:
A21: 1. | B21: Úklidem společných prostor, podlah chodeb, schodišť a vestibulu se rozumí: zamést a vytřít podlahy, odstranit našlapané žvýkačky a jiné nečistoty, vyluxovat podlahy kryté kobercem. Umýt parapety, zábradlí a hasicí přístroje umístěné na chodbách, vyleštit skleněné plochy na chodbách a ve vestibulech, setřít prach a pavučiny. Sepsat a nahlásit vedení koleje všechny závady a škody.
A22: 2. | B22: Úklidem balkonů se rozumí: zamést a vytřít podlahy, odstranit našlapané žvýkačky a jiné nečistoty, umýt parapety a zábradlí. Odstranit pavučiny. Vynést odpady a popř. i vysypat popelníky.
A23: 3. | B23: Úklidem společenských, (studoven, kluboven apod.) zájmových (posiloven, tělocvičen apod.) a zasedacích místností, kanceláří, skladů, šaten a výtahů se rozumí: zamést a vytřít podlahy, podlahy pokryté kobercem vyluxovat, setřít prach a pavučiny ze všech dosažitelných a volně přístupných míst a zařízení místností (topení, cvičební nářadí apod.), umýt a vyčistit skvrny kolem klik, dveří, vypínačů a světel. Srovnat nábytek a jiné vybavení místností. Srovnat nebo dověsit záclony a závěsy. Vyleštit zrcadla. Vynést odpad. Sepsat a nahlásit vedení koleje všechny závady a škody.
A24: 4. | B24: Úklidem prádelen se rozumí: zamést a vytřít podlahy, setřít prach a pavučiny ze všech dosažitelných a volně přístupných míst a zařízení místností (praček, topení, apod.). Vyčistit filtry praček, vyčistit zásobníky na prášek. Umýt a vyčistit dveře, kliky, vypínače a světla. Srovnat nebo dověsit záclony a závěsy. Vyleštit zrcadla. Vynést odpad. Sepsat a nahlásit vedení koleje všechny závady a škody.
A25: 5. | B25: Úklidem kuchyněk se rozumí: umýt, vyčistit a vydesinfikovat sporák, vařič, mikrovlnnou troubu, digestoř, pracovní desky a zařízení místnosti kuchyňky. Umýt, vyčistit a vydesinfikovat obklady. Pokud je kuchyňka vybavena nádobím umýt nádobí. Odmrazit a vyčistit lednici. Odstranit všechny prošlé nebo kazící se potraviny. Zamést a vytřít podlahy. Vynést odpad. Setřít prach a pavučiny. Sepsat a nahlásit vedení koleje všechny závady a škody.
A26: 6. | B26: Generálním úklidem pokojů po odchodu studentů se rozumí: umýt nábytek z venku (postele, stoly, židle, police, skříně apod.) i zevnitř (skříně, šuplíky, peřináče, postele apod.) a vyčistit od skvrn. Vyleštit zrcadla a okna. Vyluxovat/strojově vyčistit matrace postelí. Setřít prach a pavučiny (včetně žaluzií). Umýt a vyčistit veškeré obložení, lišty, obrazy, dveře, kliky, rámy oken, parapety, vypínače, zásuvky, topení, světla, lampičky apod. Umýt ledničku zevnitř i zvenku. Zamést a vytřít podlahy, podlahy kryté kobercem vyluxovat, a to i pod a za postelí, křesly a závěsy. Srovnat nebo dověsit záclony a závěsy, srovnat nábytek a jiné vybavení pokoje. Vynést odpad, umýt, otřít a vyleštit odpadkový koš. Zlikvidovat případné komáry a mouchy. Vyvětrat a popř. i navonět. Sepsat a nahlásit vedení koleje všechny závady a škody. Případné nalezené věci po ubytovaných předat vedení koleje.
A27: 7. | B27: Úklidem předsíní buněk se rozumí: úklid sociálního zařízení podle bodu 14. a 15. úklid kuchyňky podle bodu 5. Zamést a vytřít podlahy. Umýt a vyčistit pracovní plochy a nábytek. Setřít prach a pavučiny. Vynést odpad. Sepsat a nahlásit vedení koleje všechny závady a škody.
A28: 8. | B28: Úklidem hotelových pokojů po vystěhování se rozumí: umýt nábytek z venku (postele, stoly, židle, police, skříně apod.) i zevnitř (skříně, šuplíky, peřináče, postele apod.) a vyčistit od skvrn. Vyleštit zrcadla a okna. Převléct a ustlat postele, vyluxovat/strojově vyčistit matrace postelí. Setřít prach a pavučiny (včetně žaluzií). Umýt a vyčistit veškeré obložení, lišty, obrazy, dveře, kliky, rámy oken, parapety, vypínače, zásuvky, televizi, topení, světla, lampičky apod. Umýt nádobí. Umýt ledničku zevnitř i zvenku. Zamést a vytřít podlahy, podlahy kryté kobercem vyluxovat, a to i pod a za postelí, křesly a závěsy. Srovnat nebo dověsit záclony a závěsy, srovnat nábytek a jiné vybavení pokoje. Vynést odpad, umýt, otřít a vyleštit odpadkový koš. Zlikvidovat případné komáry a mouchy. Doplnit hotelové potřeby. Vyvětrat a popř. i navonět. Předat složené použité prádlo a ručníky skladní. Sepsat a nahlásit vedení koleje všechny závady a škody. Případné nalezené věci po hostech předat vedení koleje.
A29: 9. | B29: Úklidem hotelových pokojů v průběhu ubytování se rozumí: ustlání postelí, popř. výměna ložního prádla každý 4. den pobytu, výměna osušek a ručníků, doplnění toaletního papíru, vynesení odpadků, umytí koupelny (sprchový kout, WC, umyvadlo), vytření podlahy.
A30: 10. | B30: Přebráním uklizeného pokoje po studentech se rozumí: podle bodu 6. a 7. zkontrolovat úklid provedený studenty. Přebrat klíče od pokoje. Podepsat potvrzení o řádně provedeném úklidu a odevzdání klíčů. Sepsat a nahlásit vedení koleje všechny závady a škody. V případě nutnosti upozornit studenty na nedostatky v úklidu s tím, že je musí ve stanovené době odstranit, po té provést novou kontrolu úklidu. V případě, že ani napodruhé nebude pokoj řádně uklizen nahlásit tuto skutečnost vedení koleje.
A31: 11. | B31: Úklidem výtahu se rozumí: zametení a vytření podlahy, vyčištění dveřních drážek, mytí stěn, mytí světel, jsou li instalována vyleštění zrcadel.
A32: 12. | B32: Mytím oken se rozumí: mytí a leštění skel, mytí rámů, mytí parapetu, jsou-li instalovány setření žaluzií.
A33: 13. | B33: Čištěním matrací: vyčištění matrací parním strojem.
A34: 14. | B34: Úklidem WC se rozumí: umýt, vyčistit a vydesinfikovat místnost WC, umýt záchodovou mísu zevnitř i zvenku umýt nohu a trubku za WC, umýt prkýnko a nádobu na splachovací vodu, popř. umýt pisoáry, umyvadla, baterie, obklady, odpady, podlahy a dveře. Otřít držák na toaletní papír. Umýt dlaždičky a silikon od plísně. Vylít vodu a otřít pouzdro na WC štětku. Vyleštit zrcadla. Vynést odpad. Setřít prach a pavučiny. Vždy za použití odpovídajícího mycího/čistícího přípravku.
A35: 15. | B35: Úklidem koupelen a sprch se rozumí: umýt, vyčistit a vydesinfikovat umyvadlo zevnitř i zvenku včetně trubek pod ním, baterie, sprchový kout, obklady, poličku nad umyvadlem i ve sprchovém koutě, odpady, podlahy a dveře. Umýt stěny sprchového koutu, gumové těsnění popř. závěs sprchového koutu. Odstranit rez a vodní kámen. Vynést odpad. Vyleštit zrcadlo, poličku, sprchu a držák na sprchu. Umýt dlaždičky a silikon od plísně. Vynést odpad. Setřít prach a pavučiny. Vždy za použití odpovídajícího mycího/čistícího přípravku
